Cogmind - Beta 14 @@@ ROGUE MODE // 2025.03.04 @ 13:18:39 Player: Scringis Result: Self-destructed Performance ------------- Evolutions (1) 500 Regions Visited (2) 400 Robots Destroyed (24) 120 Value Destroyed (498) 498 Prototype IDs (1) 20 Alien Tech Used (0) 0 Bonus (19) 19 TOTAL SCORE: 1557 Bonus ------- High Alert Combat Kills 19 Cogmind --------- Core Integrity 321/400 Matter 261/300 Energy 125/125 System Corruption 0% Temperature Hot (269) Movement Treading (160) Location -9/Materials Parts ------- > --- POWER (1) -------- Light Ion Engine > --- PROPULSION (2) --- Light Treads Light Treads > --- UTILITY (2) ------ Medium Storage Unit Improved Signal Interpreter > --- WEAPON (4) ------- Pulse Rifle Light Cannon > --- INVENTORY (10) --- EMP Blaster EMP Blaster Peak State ------------ > --- POWER ------------ (None) > --- PROPULSION ------- Light Treads Light Treads > --- UTILITY ---------- Medium Storage Unit Improved Signal Interpreter > --- WEAPON ----------- Beam Rifle Pulse Rifle Pulse Rifle Heavy Assault Rifle > --- INVENTORY -------- Light Ion Engine Light Treads EM Pulse Gun Assault Rifle EMP Blaster EMP Blaster [Rating: 16] Favorites ----------- Power Light Ion Engine Engine Light Ion Engine Propulsion Light Treads Treads Light Treads Utility Medium Storage Unit Storage Medium Storage Unit Processor Improved Signal Interpreter Weapon Pulse Rifle Energy Gun Pulse Rifle Ballistic Gun Assault Rifle Ballistic Cannon Light Cannon Special Melee Weapon Datajack Build | -11 -10 -9 ------- Run | Yrd Mat Mat Slots Evolved 2 | . . 2 Power . | . . . Propulsion . | . . . Utility . | . . . Weapon 2 | . . 2 Parts Attached 20 | 6 3 11 Power 3 | 1 . 2 Engine 3 | 1 . 2 Core . | . . . Reactor . | . . . Propulsion 3 | 2 . 1 Treads 3 | 2 . 1 Leg . | . . . Wheel . | . . . Hover . | . . . Flight . | . . . Utility 4 | 1 1 2 Device . | . . . Storage 2 | 1 1 . Processor 2 | . . 2 Hackware . | . . . Protection . | . . . Artifact . | . . . Weapon 10 | 2 2 6 Energy Gun 4 | 1 . 3 Energy Cannon . | . . . Ballistic Gun 4 | 1 1 2 Ballistic Cannon 1 | . . 1 Launcher . | . . . Special Weapon . | . . . Impact Weapon . | . . . Slashing Weapon . | . . . Piercing Weapon . | . . . Special Melee Weapon 1 | . 1 . Unidentified Prototypes 1 | . . 1 Parts Lost 4 | . . 4 Power 1 | . . 1 Propulsion . | . . . Utility . | . . . Weapon 3 | . . 3 Highest Loss Streak 2 | . . 2 To Critical Strikes . | . . . Average Slot Usage (%) 88 | . 85 91 Engine 9 | . 14 7 Treads 24 | . 28 22 Storage 12 | . 14 11 Processor 5 | . . 8 Energy Gun 23 | . 14 28 Ballistic Gun 9 | . 13 7 Ballistic Cannon 3 | . . 5 Peak Build Rating 16 | 6 6 16 Average Rating 10 | 4 5 13 On Entrance 4 | . 6 6 Naked Turns . | . . . Heaviest Build 25 | 12 17 25 Greatest Support 40 | 40 40 40 Greatest Overweight (x) . | . . . Average Overweight (x) . | . . . Largest Inventory Capacity 10 | 8 10 10 Average Capacity 9 | 7 9 10 Most Carried 6 | 4 4 6 Average Carried 2 | 1 2 3 Final Capacity 10 | 8 10 10 Final Carried 3 | 1 3 2 Class Distribution -------------------- 57% | Gunner 42% | Mutant Dominant Class ---------------- Mutant | -10/Materials Gunner | -9/Materials Resources | -11 -10 -9 ----------- Run | Yrd Mat Mat Matter Collected 506 | 258 42 206 Remotely . | . . . Salvage Created 599 | . 124 475 Parts 51 | . 13 38 Haulers Intercepted . | . . . Recyclers Shooed 1 | . . 1 Parts Field Recycled . | . . . Retrieved Matter . | . . . Parts Self-Destructed . | . . . Prevented . | . . . Kills | -11 -10 -9 ------- Run | Yrd Mat Mat Combat Hostiles Destroyed 17 | . 2 15 Guns 14 | . 2 12 Cannons 2 | . . 2 AOE 1 | . . 1 Classes Destroyed 6 | . 3 3 Worker 2 | . 1 1 Operator 3 | . 2 1 Watcher 2 | . . 2 Swarmer 9 | . . 9 Grunt 4 | . 2 2 Sentry 4 | . . 4 Best Kill Streak 9 | . 4 9 Combat Bots Only 7 | . 2 7 Max Kills in Single Turn 2 | . 2 2 Gunslinging . | . . . Exploded 1 | . . 1 Melee . | . . . Uniques/NPCs Destroyed . | . . . Combat | -11 -10 -9 -------- Run | Yrd Mat Mat Hostile Shots Fired 87 | . 9 78 Missed 12 | . 2 10 Damage Taken 825 | . 109 716 Core 112 | . 33 79 Absorbed by Shields . | . . . Core Remaining (%) 93 | 100 86 . Volleys Fired 39 | . 7 32 Largest 4 | . 2 4 Hottest 217 | . 60 217 Shots Fired 122 | . 14 108 Gun 102 | . 14 88 Cannon 20 | . . 20 Launcher . | . . . Special . | . . . Kinetic 47 | . 7 40 Thermal 56 | . . 56 Explosive . | . . . Electromagnetic 19 | . 7 12 Robot Hit Streak 9 | . 4 9 Robot Miss Streak 3 | . 3 3 Penetration Max . | . . . Secondary Targets 2 | . . 2 Max Gunslinging Chain 1 | . . 1 Shots Hit Robots 64 | . 7 57 Core Hits 32 | . 6 26 Critical Kills . | . . . Critical Parts Destroyed . | . . . Critical Strikes 3 | . . 3 Burn 2 | . . 2 Blast 1 | . . 1 Melee Attacks . | . . . Impact . | . . . Slashing . | . . . Piercing . | . . . Sneak Attacks . | . . . Combat Hostiles . | . . . Follow-up Attacks . | . . . Damage Inflicted 1131 | . 176 955 Guns 840 | . 112 728 Cannons 164 | . . 164 Explosions 124 | . 61 63 Melee . | . . . Ramming 3 | . 3 . Kinetic 352 | . 54 298 Thermal 616 | . 61 555 Explosive . | . . . Electromagnetic 160 | . 58 102 Impact . | . . . Slashing . | . . . Piercing . | . . . Highest Corruption . | . . . Average Corruption . | . . . Corruption Purged . | . . . Corruption Blocked . | . . . Overload Shots . | . . . Overflow Damage . | . . . Projectiles . | . . . Explosions . | . . . Melee . | . . . Knockbacks 4 | . . 4 Impact . | . . . Kinetic 4 | . . 4 Secondary . | . . . Self-Inflicted Damage 83 | . 34 49 Shots 2 | . 1 1 Rammed 3 | . 2 1 Targets Rammed 3 | . 2 1 Kicked . | . . . Crushed . | . . . Highest Temperature 585 | . 18 585 Average Temperature 171 | . 12 181 Received Heat Transfer 183 | . 42 141 Effects 11 | . . 11 Shutdowns 3 | . . 3 Interference 2 | . . 2 Damage (minor) 3 | . . 3 Damage (major) 3 | . . 3 Siege Activations . | . . . Robots Corrupted . | . . . Combat Hostiles . | . . . Parts Fried . | . . . Impact Corruptions . | . . . Robots Melted . | . . . Combat Hostiles . | . . . Parts Melted 1 | . . 1 Heat Transferred 1432 | . 50 1382 Parts Sabotaged . | . . . Parts Stolen . | . . . Parts Stripped . | . . . Power Chain Reactions 2 | . 1 1 Alert | -11 -10 -9 ------- Run | Yrd Mat Mat Peak Influence 449 | . 70 449 Initial 29 | . . 29 Average 169 | . 40 267 Maximum Alert Level 2 | . . 2 Low Security (%) 52 | 100 100 19 Level 1 35 | . . 61 Level 2 11 | . . 19 Level 3 . | . . . Level 4 . | . . . Level 5 . | . . . High Security . | . . . Max Security . | . . . Squads Dispatched 4 | . 1 3 Investigation 1 | . . 1 Extermination . | . . . Reinforcement 3 | . 1 2 Assault . | . . . Garrison . | . . . Intercept . | . . . Searches Triggered . | . . . Construction Impeded . | . . . Haulers Reinforced . | . . . Active Scanning Responses . | . . . Cargo Convoy Interrupts . | . . . Stealth | -11 -10 -9 --------- Run | Yrd Mat Mat Distress Signals 3 | . . 3 Communications Jammed . | . . . Distress Signals . | . . . Times Spotted 28 | . 3 25 Peak Tracking Total 7 | . 3 7 Tactical Retreats 1 | . . 1 Traps | -11 -10 -9 ------- Run | Yrd Mat Mat Traps Triggered 1 | . . 1 Indirectly . | . . . Trap Hack Attempts . | . . . Triggered . | . . . Disarmed . | . . . Reprogrammed . | . . . Reused . | . . . Traps Extracted . | . . . Installed . | . . . Triggered . | . . . Machines | -11 -10 -9 ---------- Run | Yrd Mat Mat Machines Disabled 1 | . . 1 Max in Single Turn 1 | . . 1 Machines Repaired . | . . . Machines Dismantled . | . . . Machines Sabotaged . | . . . Overloaded Fab Kills . | . . . Hacking | -11 -10 -9 --------- Run | Yrd Mat Mat Machines Accessed . | . . . Terminals . | . . . Fabricators . | . . . Repair Stations . | . . . Recycling Units . | . . . Scanalyzers . | . . . Garrison Access . | . . . Total Hacks . | . . . Successful . | . . . Failed . | . . . Catastrophic . | . . . Database Lockouts . | . . . Manual . | . . . Terminals . | . . . Fabricators . | . . . Repair Stations . | . . . Recycling Units . | . . . Scanalyzers . | . . . Garrison Access . | . . . Terminal Hacks . | . . . Fabricator Hacks . | . . . Repair Station Hacks . | . . . Recycling Unit Hacks . | . . . Scanalyzer . | . . . Garrison Access Hacks . | . . . Unauthorized Hacks . | . . . Terminals . | . . . Fabricators . | . . . Repair Stations . | . . . Recycling Units . | . . . Scanalyzers . | . . . Garrison Access . | . . . Data Cores Recovered . | . . . Used . | . . . Hacking Detections . | . . . Full Trace Events . | . . . Feedback Events . | . . . Feedback Blocked . | . . . Robot Schematics Acquired . | . . . Robots Built . | . . . Authchips . | . . . Time . | . . . Total Robot Build Rating . | . . . Part Schematics Acquired . | . . . Parts Built . | . . . Authchips . | . . . Time . | . . . Total Part Build Rating . | . . . Parts Repaired . | . . . Time . | . . . Parts Recycled . | . . . Recycled Matter . | . . . Retrieved Matter . | . . . Retrieved Components . | . . . Parts Scanalyzed . | . . . Part Schematics Acquired . | . . . Parts Damaged . | . . . Bothacking | -11 -10 -9 ------------ Run | Yrd Mat Mat Used RIF Installer . | . . . Robots Hacked . | . . . Non-combat . | . . . Combat . | . . . Robot Hacks Applied . | . . . Relay Couplers Released . | . . . Fabnet Peak Effective % . | . . . Robots Rewired . | . . . Allies Hacked . | . . . Hacks Repelled . | . . . Allies | -11 -10 -9 -------- Run | Yrd Mat Mat Total Allies . | . . . Largest Group . | . . . Highest-Rated Group . | . . . Highest-Rated Ally . | . . . Total Orders . | . . . Ally Attacks . | . . . Total Damage . | . . . Kills . | . . . Allies Corrupted . | . . . Allies Melted . | . . . Intel | -11 -10 -9 ------- Run | Yrd Mat Mat Robot Analysis Total . | . . . Derelict Logs Recovered . | . . . Drone Launches . | . . . Drone Recoveries . | . . . Exploration | -11 -10 -9 ------------- Run | Yrd Mat Mat Turns Passed 848 | 75 279 494 Spaces Moved 396 | 44 153 199 Core 8 | 8 . . Treads 388 | 36 153 199 Legs . | . . . Wheels . | . . . Hover . | . . . Flight . | . . . Fastest Speed 50 | 50 160 160 Average Speed 157 | 140 160 160 Slowest Speed 160 | 160 160 160 Overloaded Moves . | . . . Propulsion Burnouts . | . . . Robots Hopped . | . . . Cave-ins Triggered . | . . . Exploration Rate (%) 21 | 6 26 33 Regions Visited 2 Branch Regions . Pre-discovered Areas . | . . . Known Exits Taken . | . . . Unknown Exits Taken 2 | 1 1 . Scrap Searched . | . . . Spaces Dug . | . . . Terrain Destroyed 9 | . 4 5 Melee . | . . . Projectile . | . . . AOE 9 | . 4 5 Terrain Rammed . | . . . Walls Destroyed . | . . . Machines Disabled . | . . . Actions | -11 -10 -9 --------- Run | Yrd Mat Mat Total 529 | 58 173 298 Wait 40 | . 1 39 Move 394 | 43 152 199 Hop . | . . . Pick Up 23 | 8 5 10 Fast Attach . | . . . Attach 12 | 6 1 5 Detach . | . . . Swap 9 | . 2 7 Drop 9 | 1 3 5 Fire 39 | . 7 32 Melee . | . . . Ram . | . . . Kick . | . . . Crush 3 | . 2 1 Escape Stasis . | . . . Rewire . | . . . Trap . | . . . Miscellaneous . | . . . Route ------- -11/Scrapyard -10/Materials -9/Materials (discovered 1 exit: *Min) History --------- Turn | Location | Event 3 | -11/Scrapyard | Discovered new exit (range 15) 76 | -11/Scrapyard | Entered Materials 250 | -10/Materials | Discovered new exit (range 9) 313 | -10/Materials | Build established: Mutant 355 | -10/Materials | Entered another Materials area 355 | -9/Materials | Evolved 2 slots: Weapon x2 480 | -9/Materials | Destroyed 7 combat bots 662 | -9/Materials | Build established: Gunner 727 | -9/Materials | Discovered new exit (range 12) 747 | -9/Materials | Identified exit to Mines 849 | -9/Materials | Self-destructed Last Messages --------------- 00799_ O-16 Technician destroyed. 00803_ Acquired 12 matter. 00805_ R-06 Scavenger collects Hacking Suite. 00806_ Acquired Lgt. Ion Engine. 00809_ Dropped Lgt. Ion Engine. 00809_ R-06 Scavenger collects Lgt. Ion Engine. 00811_ Dropped Lgt. Treads. 00812_ R-06 Scavenger collects Lgt. Treads. 00832_ Triggered Alarm Trap. 00832_ An alarm sounds. 00832_ ALERT: Alarm triggered, dispatching investigation squad. 00833_ Pulse Rifle destroyed. 00837_ S-10 Pest destroyed. 00837_ S-10 Pest knocked back. 00840_ Destroyed Flight Unit. 00840_ S-10 Pest knocked back. 00843_ Beam Rifle destroyed. 00849_ R-06 Scavenger inserts EM Pulse Gun into recycling unit. Map ----- +----------------------------------------------------+ | ???????????????????????????????????## ##### """ | | ???????????????????????????????????# "## | | ???????????????????????????????????# ""## """ | | ???????????????????????????????????# ||## """ | | ???????????????????????????????????# > ""## """ | | ???????????????????????????????????# ||## | | ???????????????????????????????????# ""#??#### | | ???????????????????????????????????# "#?????? | | ????????????????????????############# ########## | | ????????????????????????# # # | | ????????????????????????# """ + + | | ?????????????????????????""""" # # | | ??????????????????????????"""" # # | | ??????????????????????????"""" # #? | | ??????????????????????????""" # #? | | ?????????????????????????? # #?? | | ?????????????????????????#+#####+#### #??####### | | ?????????????????????????# #???# #?## ##???????? | | ?????????????????????????# #??## ### #######?? | | ?????????????????????????# #??# | | ?????????????????????????# #### T | | ???????????????########### T | | ???????????????#] # ## ######### | | ???????????????? "" # r ####+###???????? | | ???????????????? """ Y" # #??????????????? | | ???????????????# """ r"" @ #??????????????? | | ???????????????# """ # #??????????????? | | ???????????????# """ # /// #??????????????? | | ???????????????# """%= # /// [#??????????????? | | ???????????????# % %[ !# // #??????????????? | | ???????????????#####s##### t ?????????????? | | ?????????????????? ????# # ""???????????? | | ????????????????? ????? #T###? "???????????? | | ???????????????? ?????# ###????????????????? | | ??????????????? ??????# #??????????????????? | | ??????????????# ???????# #??????????????????? | | ??????????????# ????????# #??????????????????? | | ????????????????????????### ###??????????????????? | | ??????????????????????????# #????????????????????? | | ??????????????????????????# #????????????????????? | | ?????????????????????????? ?????????????????????? | | ??????????????????????????? ?????????????????????? | | ??????????????????????????? ?????????????????????? | | ?????????????????????????????????????????????????? | | ?????????????????????????????????????????????????? | | ?????????????????????????????????????????????????? | | ?????????????????????????????????????????????????? | | ?????????????????????????????????????????????????? | | ?????????????????????????????????????????????????? | | ?????????????????????????????????????????????????? | +----------------------------------------------------+ Best States ------------- Heat Dissipation 28 Energy Generation 10 Energy Capacity 125 Matter Stores 300 Matter Capacity 300 Sight Range 16 Terrain Scan Density 10 Evasion (%) 40 Recoil Reduction 2 Item Schematics ----------------- None Robot Schematics ------------------ None Fabricated ------------ Nothing Alien Tech Used ----------------- None Achievements -------------- None Challenges ------------ None Game ------ Seed BehemothActuatorAmplifier Manual? 0 Play Time 00:05:54 Cumulative 17.4 hours Start 2025.03.03 @ 13:46:00 End 2025.03.04 @ 13:18:39 Sessions 4 Manual Loads 0 Difficulty Rogue Special Mode None Game No. 56 Rogue 56 Adventurer 0 Explorer 0 Win Type - Total 0 Types 0/0/0/0/0/0/0/0/0 Lore% 10 Gallery% 17 Achievement% 17 Wizard Run 0 Options --------- Layout 1 ASCII 0 Keyboard 0 Movement Mouse Keybinds 0 Fullscreen 2 Font 24/Smallcaps Map View 50x35 Zoom Use 0% Tactical HUD 1 Map Filters NONE Filters NONE Steam 1 RUN: 6e6f1d4d-5283-4502-8369-cf7f23275fd6